fUSD/lending_fUSD_20240404
["ID","MTS","AMOUNT","RATE_DAILY","PERIOD"]
[321497573,1712243448799,-1000.0,0.0004884,23]
[321497574,1712243448809,-1175.393457,0.0004884,23]
[321497575,1712243448818,-224.36131839,0.00048849,60]
[321497576,1712243448827,-651.05426243,0.00048849,60]
[321497577,1712243448839,-154.06850799,0.0004885,30]
[321497578,1712243448849,-1000.0,0.0004886,23]
[321497579,1712243448858,-1000.0,0.0004886,23]
[321497580,1712243448867,-1000.0,0.0004887,3]
[321497581,1712243448877,-400.0,0.0004887,3]
[321497582,1712243448887,-2238.85535965,0.00048876,2]
[321497583,1712243448896,-5278.99,0.00048879,8]
[321497584,1712243448905,-5278.99,0.00048879,8]
[321497585,1712243448914,-5278.99,0.00048879,8]
[321497586,1712243448923,-5278.99,0.00048879,8]
[321497587,1712243448933,-5278.99,0.00048879,8]
[321497588,1712243448942,-5279.11562411,0.00048879,8]
[321497589,1712243448951,-949045.27945566,0.0004888,7]
[321497590,1712243448960,-1000.0,0.0004888,23]
[321497591,1712243448969,-1000.0,0.0004888,23]
[321497592,1712243448979,-160.35419976,0.00048889,10]
[321497593,1712243448988,-500.0,0.00048889,2]
[321497594,1712243448998,-192.11652935,0.0004889,2]
[321497595,1712243449007,-2238.85535965,0.00048897,2]
[321497596,1712243449016,-150.0,0.000489,26]
[321497597,1712243449026,-294599.49902674,0.000489,2]
[321497598,1712243449035,-961.0,0.000489,37]
[321497599,1712243449044,-292.031541,0.000489,26]
[321497600,1712243449053,-1000.0,0.000489,23]
[321497601,1712243449062,-1000.0,0.000489,23]
[321497602,1712243449071,-161.95937467,0.0004891,30]
[321497603,1712243449080,-150.0,0.0004894,63]
[321497604,1712243449090,-150.0,0.00048952,7]
[321497605,1712243449099,-150.0,0.00048965,7]
[321497606,1712243449108,-1883.31,0.00048986,15]
[321497607,1712243449117,-5985.45,0.00048999,8]
[321497608,1712243449127,-159473.97616609,0.00049,49]
[321497609,1712243450061,-1241.02785424,0.00049,49]
[321497610,1712243450076,-4978.8149905,0.00049,49]
[321497611,1712243450088,-565.62080007,0.00049,49]
[321497612,1712243450985,-182.65753778,0.00024896,2]
[321497613,1712243450996,-922.07887222,0.00049,49]
[321497614,1712243451008,-9435.537757,0.00049,49]
[321497615,1712243451020,-4002.78837242,0.00049,49]
[321497616,1712243451038,-676.06144705,0.00049,49]
[321497617,1712243451049,-2988.87313849,0.00049,49]
[321497618,1712243451062,-6624.37343878,0.00049,49]
[321497619,1712243451074,-4084.3310822,0.00049,49]
[321497620,1712243451094,-4239.41703988,0.00049,49]
[321497621,1712243451859,-250.0,0.00037,3]
[321497622,1712243451870,-2203.6312,0.00039124,120]
[321497623,1712243451880,-156.96587328,0.00042508,2]
[321497624,1712243451890,-212.16970104,0.00045982,2]
[321497625,1712243451958,-136.45029896,0.00045982,2]
[321497626,1712243451968,-519.43,0.00045982,2]
[321497627,1712243451979,-150.0,0.00045982,2]
[321497628,1712243451989,-221.0,0.000478,30]
[321497629,1712243452320,-767.09904106,0.00049,49]
[321497630,1712243452330,-500.0,0.00049,2]
[321497631,1712243452339,-5062.58249105,0.00049,30]
[321497632,1712243452349,-500.0,0.00049,7]
[321497633,1712243452358,-500.0,0.00049,7]
[321497634,1712243452368,-500.0,0.00049,7]
[321497635,1712243452377,-500.0,0.00049,7]
[321497636,1712243452387,-500.0,0.00049,7]
[321497637,1712243452396,-500.0,0.00049,7]
[321497638,1712243452405,-500.0,0.00049,7]
[321497639,1712243452414,-500.0,0.00049,7]
[321497640,1712243452424,-500.0,0.00049,7]
[321497641,1712243452433,-500.0,0.00049,7]
[321497642,1712243452443,-500.0,0.00049,7]
[321497643,1712243452452,-500.0,0.00049,7]
[321497644,1712243452462,-500.0,0.00049,7]
[321497645,1712243452472,-500.0,0.00049,7]
[321497646,1712243452484,-500.0,0.00049,7]
[321497647,1712243452493,-500.0,0.00049,7]
[321497648,1712243452502,-500.0,0.00049,7]
[321497649,1712243452511,-500.0,0.00049,7]
[321497650,1712243452520,-500.0,0.00049,7]
[321497651,1712243452529,-500.0,0.00049,7]
[321497652,1712243452538,-500.0,0.00049,7]
[321497653,1712243452547,-500.0,0.00049,7]
[321497654,1712243452556,-500.0,0.00049,7]
[321497655,1712243452566,-500.0,0.00049,7]
[321497656,1712243452574,-500.0,0.00049,7]
[321497657,1712243452584,-500.0,0.00049,7]
[321497658,1712243452593,-500.0,0.00049,7]
[321497659,1712243452602,-500.0,0.00049,7]
[321497660,1712243452611,-500.0,0.00049,7]
[321497661,1712243452620,-500.0,0.00049,7]
[321497662,1712243452630,-500.0,0.00049,7]
[321497663,1712243452640,-500.0,0.00049,7]
[321497664,1712243452650,-500.0,0.00049,7]
[321497665,1712243452660,-500.0,0.00049,7]
[321497666,1712243452669,-500.0,0.00049,7]
[321497667,1712243452679,-500.0,0.00049,7]
[321497668,1712243452688,-500.0,0.00049,7]
[321497669,1712243452697,-500.0,0.00049,7]
[321497670,1712243452708,-500.0,0.00049,7]
[321497671,1712243452717,-500.0,0.00049,7]
[321497672,1712243452726,-500.0,0.00049,7]
[321497673,1712243452738,-500.0,0.00049,7]
[321497674,1712243452748,-500.0,0.00049,7]
[321497675,1712243452758,-500.0,0.00049,7]
[321497676,1712243452771,-500.0,0.00049,7]
[321497677,1712243452781,-500.0,0.00049,7]
[321497678,1712243452792,-500.0,0.00049,7]
[321497679,1712243452802,-500.0,0.00049,7]
[321497680,1712243452812,-500.0,0.00049,7]
[321497681,1712243452821,-500.0,0.00049,7]
[321497682,1712243452831,-500.0,0.00049,7]
[321497683,1712243452841,-500.0,0.00049,7]
[321497684,1712243452851,-500.0,0.00049,7]
[321497685,1712243452861,-500.0,0.00049,7]
[321497686,1712243452871,-500.0,0.00049,7]
[321497687,1712243452880,-500.0,0.00049,7]
[321497688,1712243452889,-500.0,0.00049,7]
[321497689,1712243452899,-500.0,0.00049,7]
[321497690,1712243452909,-500.0,0.00049,7]
[321497691,1712243452918,-500.0,0.00049,7]
[321497692,1712243452928,-500.0,0.00049,7]
[321497693,1712243452937,-469.49,0.00049,7]
[321497694,1712243452947,-500.0,0.00049,7]
[321497695,1712243452956,-307.96,0.00049,7]
[321497696,1712243452966,-1000.0,0.00049,120]
[321497697,1712243452976,-2000.0,0.00049,80]
[321497698,1712243452987,-500.0,0.00049,7]
[321497699,1712243452997,-2110.0,0.00049,15]
[321497700,1712243453007,-329.70324402,0.00049,2]
[321497701,1712243453080,-2670.29675598,0.00049,2]
[321497702,1712243453089,-1000.0,0.00049,30]
[321497703,1712243453098,-173.77515038,0.00049,2]
[321497704,1712243453109,-3882.70999997,0.00049,2]
[321497705,1712243453120,-635.45000001,0.00049,2]
[321497709,1712244064215,-165.60307597,0.00024971,2]
[321497710,1712244064235,-155.0,0.00024972,2]
[321497711,1712244064393,-1221.36561654,0.00024972,2]
[321497712,1712244064414,-150.0,0.00024973,2]
[321497713,1712244064434,-389.92773381,0.00024974,2]
[321497714,1712244064454,-23277.16713389,0.00024974,2]
[321497715,1712244064474,-895.0269461,0.00024975,2]
[321497716,1712244064495,-13745.90949369,0.00024975,2]
[321497717,1712244066496,-40000.0,0.00024975,2]
[321497718,1712244363727,-6870.67649419,0.00024123,2]
[321497719,1712244363749,-857.17181074,0.00024221,2]
[321497720,1712244363774,-1742.29063559,0.00024222,2]
[321497721,1712244363797,-619.85903412,0.00024223,2]
[321497722,1712244363821,-260.23749187,0.00024226,2]
[321497723,1712244363843,-155.0,0.0002497,2]
[321497724,1712244363865,-312.22591379,0.00024973,2]
[321497725,1712244363886,-202.59210874,0.00024974,2]
[321497726,1712244363907,-1167.63976919,0.00024974,2]
[321497727,1712244363929,-812.30674177,0.00024975,2]
[321497728,1712244414123,2532.51458462,0.00018731,2]
[321497729,1712244430097,-150.0,0.00024869,2]
[321497730,1712244430118,-1017.64769228,0.0002487,2]
[321497731,1712244436246,2532.51458462,0.00018731,2]
[321497732,1712244454119,1038.27027185,0.00014048,2]
[321497733,1712244459942,19606.21101507,0.00018731,2]
[321497734,1712244467496,1466.53448895,0.00018731,2]
[321497735,1712244467961,295.82660405,0.00018731,2]
[321497736,1712244476113,24598.80821803,0.00018731,2]
[321497737,1712244476580,1032.68672601,0.00018731,2]
[321497738,1712244478346,7474.77182007,0.00018731,2]
[321497739,1712244479875,318.55745475,0.00018731,2]
[321497740,1712244480580,155.0,0.00018731,2]
[321497741,1712244483917,19606.21101507,0.00018731,2]
[321497742,1712244487429,292.3734417,0.00018731,2]
[321497743,1712244487931,352.6954662,0.00018731,2]
[321497744,1712244494525,1032.68672601,0.00018731,2]
[321497745,1712244498070,20013.74891017,0.00018731,2]
[321497746,1712244498562,174.29407009,0.00018731,2]
[321497747,1712244499820,367.43108226,0.00018731,2]
[321497748,1712244500328,7474.77182007,0.00018731,2]
[321497749,1712244501920,19606.21101507,0.00018731,2]
[321497750,1712244510514,1032.68672601,0.00018731,2]
[321497751,1712244516988,7474.77182007,0.00018731,2]
[321497752,1712244521932,19606.21101507,0.00018731,2]
[321497753,1712244529351,1366.40848946,0.00018731,2]
[321497754,1712244532501,1032.68672601,0.00018731,2]
[321497755,1712244534326,7474.77182007,0.00018731,2]
[321497756,1712244539925,620.11708175,0.00018731,2]
[321497757,1712244550504,563.70961789,0.00018731,2]
[321497758,1712244551209,1366.40848946,0.00018731,2]
[321497759,1712244552376,7474.77182007,0.00018731,2]
[321497760,1712244570381,783.09336662,0.00018731,2]
[321497761,1712244571181,1366.40848946,0.00018731,2]
[321497762,1712244588098,1072.465613,0.00014048,2]
[321497763,1712244591667,517.06508719,0.00018731,2]
[321497791,1712244632355,-1793.087488,0.00024645,2]
[321497793,1712244632365,-3155.84658012,0.00024769,2]
[321497795,1712244632375,-1760.3582,0.0002477,2]
[321497797,1712244632384,-1101.0,0.00024869,2]
[321497799,1712244632393,-150.0,0.00024869,2]
[321497801,1712244632402,-11213.58120772,0.0002487,2]
[321497803,1712244632412,-169.08605309,0.00024874,2]
[321497805,1712244632421,-618.96489906,0.00024974,2]
[321497807,1712244632430,-1480.28415736,0.00024975,2]
[321497808,1712244632442,-260.54038049,0.00024975,2]
[321497809,1712244632506,-4863.67759204,0.00024975,2]
[321497810,1712244632515,-2034.88579897,0.00024975,2]
[321497811,1712244632525,-368.35349588,0.00024975,2]
[321497812,1712244632534,-362.89845886,0.00024975,2]
[321497813,1712244632544,-171.77759115,0.00025145,2]
[321497814,1712244632553,-155.67095295,0.00025146,2]
[321497815,1712244632562,-684.2934063,0.0003,4]
[321497816,1712244632572,-3206.28076084,0.0003,2]
[321497817,1712244632581,-546.33640609,0.0003,4]
[321497818,1712244632593,-197.13286964,0.0003,4]
[321497819,1712244632603,-1389.0,0.000314,2]
[321497820,1712244632613,-156.25,0.00032877,2]
[321497821,1712244632622,-1047.47,0.00035052,2]
[321497822,1712244632631,-150.0,0.00036031,2]
[321497823,1712244632641,-151.67,0.00036119,2]
[321497824,1712244632650,-544.59,0.00036169,2]
[321497825,1712244632659,-200.0,0.00036304,2]
[321497826,1712244632667,-160.04,0.00036314,120]
[321497827,1712244632677,-1191.19,0.00036468,2]
[321497828,1712244632687,-250.0,0.00036611,112]
[321497830,1712244632696,-482.9318708,0.00036647,2]
[321497839,1712244633086,-514.0681292,0.00036647,2]
[321497840,1712244633095,-500.0,0.00036725,2]
[321497841,1712244633106,-250.0,0.00036771,2]
[321497842,1712244633115,-500.0,0.00036833,2]
[321497843,1712244633126,-800.0,0.00036986,2]
[321497844,1712244633136,-400.0,0.00036986,2]
[321497845,1712244633145,-856.0258688,0.00036996,5]
[321497846,1712244633155,-2408.39177422,0.00036998,4]
[321497847,1712244633165,-681.80722778,0.00036998,4]
[321497848,1712244633176,-1404.42326821,0.00036998,4]
[321497849,1712244633187,-331.43354581,0.00036998,4]
[321497850,1712244633198,-1485.4781397,0.00036998,4]
[321497851,1712244633207,-267.7172141,0.00036998,4]
[321497852,1712244633240,-94.0626407,0.00036998,4]
[321497853,1712244633251,-880.45661014,0.00036998,2]
[321497854,1712244633297,-2973.93793594,0.00036998,2]
[321497855,1712244633307,-400.0,0.00036998,2]
[321497856,1712244633317,-278.15686245,0.00036998,4]
[321497857,1712244633327,-180.45952597,0.00036999,4]
[321497858,1712244633337,-216.9117649,0.00036999,4]
[321497859,1712244633346,-160.71324978,0.00036999,4]
[321497860,1712244633356,-155.0,0.00036999,4]
[321497861,1712244633366,-1008.51326573,0.00036999,4]
[321497862,1712244633375,-568.31695291,0.00037,2]
[321497863,1712244633385,-27956.0680918,0.00037,2]
[321497864,1712244633398,-30197.45391882,0.00037,2]
[321497865,1712244633408,-751.14147616,0.00037,2]
[321497866,1712244633418,-160.04,0.00037053,120]
[321497867,1712244633427,-11157.0,0.00037212,2]
[321497868,1712244633438,-1047.47,0.00037316,2]
[321497869,1712244633448,-166.36,0.00037835,2]
[321497870,1712244633458,-4540.22434392,0.00037927,2]
[321497871,1712244633468,-23900.0,0.00037971,2]
[321497872,1712244633478,-1919.79,0.00038027,15]
[321497873,1712244633488,-964.97,0.00038133,2]
[321497874,1712244633499,-300.0,0.00039,3]
[321497875,1712244633510,-1211.0,0.00039,4]
[321497876,1712244633519,-2813.66050306,0.00039005,2]
[321497877,1712244633529,-477.57572612,0.00039005,2]
[321497878,1712244633541,-477.57572611,0.00039062,2]
[321497879,1712244633551,-738.2033,0.00039105,2]
[321497880,1712244633561,-477.57572611,0.00039119,2]
[321497881,1712244633571,-151.67,0.00039175,2]
[321497882,1712244633580,-477.57572611,0.00039175,2]
[321497883,1712244633590,-170.9701071,0.00039232,2]
[321497884,1712244633600,-157.64831993,0.00039232,9]
[321497885,1712244633610,-466.64082786,0.00039232,2]
[321497886,1712244633620,-477.57572611,0.00039232,2]
[321497887,1712244633630,-595.58115736,0.00039232,11]
[321497888,1712244633639,-153.34186357,0.00039233,3]
[321497889,1712244633650,-4540.22434388,0.00039272,2]
[321497890,1712244633660,-231.1298965,0.00039321,4]
[321497891,1712244633671,-324.53908976,0.00039321,4]
[321497892,1712244633681,-156.4574214,0.00039321,4]
[321497893,1712244633691,-13588.18002459,0.00039321,2]
[321497894,1712244633702,-4710.43501959,0.00039321,4]
[321497895,1712244633712,-256.19396365,0.00039321,4]
[321497896,1712244633722,-155.0,0.00039321,4]
[321497897,1712244633732,-500.0,0.00039331,15]
[321497898,1712244633742,-274.17183243,0.00039331,15]
[321497899,1712244633752,-500.0,0.00039331,15]
[321497900,1712244633762,-401.10294756,0.00039331,15]
[321497901,1712244633772,-500.0,0.00039331,15]
[321497902,1712244633782,-500.0,0.00039331,15]
[321497903,1712244633793,-500.0,0.00039331,15]
[321497904,1712244633804,-56866.7239699,0.00039332,20]
[321497905,1712244634379,-30754.96410104,0.00039332,20]
[321497906,1712244634393,-10468.8,0.00039332,20]
[321497907,1712244634407,-6127.228,0.00039332,20]
[321497908,1712244634421,-5202.63117396,0.00039332,20]
[321497909,1712244638287,-255.99604412,0.00039331,15]
[321497910,1712244638346,-244.00395588,0.00039331,15]
[321497911,1712244638356,-500.0,0.00039331,15]
[321497912,1712244638366,-500.0,0.00039331,15]
[321497913,1712244638375,-29148.94370151,0.00039332,20]
[321497914,1712244638387,-14457.05794509,0.00039332,20]
[321497915,1712244638438,-664.90991243,0.00039332,20]
[321497916,1712244638567,-672580.8559618,0.00039332,20]
[321497917,1712244638576,-150.0,0.00039332,2]
[321497918,1712244638585,-150.0,0.00039332,2]
[321497919,1712244638594,-200.0,0.00039332,2]
[321497920,1712244638603,-1000.0,0.00039332,2]
[321497921,1712244638613,-1000.0,0.00039332,2]
[321497922,1712244638622,-1000.0,0.00039332,2]
[321497923,1712244638632,-1000.0,0.00039332,2]
[321497924,1712244638641,-1000.0,0.00039332,2]
[321497925,1712244638651,-1154.318521,0.00039332,2]
[321497926,1712244638661,-173.41,0.00039432,2]
[321497927,1712244638671,-1047.47,0.0003958,2]
[321497928,1712244638680,-299.65527006,0.00039598,30]
[321497929,1712244638690,-1584.19132274,0.000399,2]
[321497930,1712244638699,-1584.19132275,0.000399,2]
[321497931,1712244638709,-256.04237772,0.0004,30]
[321497932,1712244638720,-214.6091896,0.0004,30]
[321497933,1712244638730,-547.14230713,0.0004,4]
[321497934,1712244638739,-192.76675003,0.0004,2]
[321497935,1712244638748,-5758.8947196,0.0004,4]
[321497936,1712244638759,-22103.7237332,0.0004,4]
[321497937,1712244638769,-691.0,0.0004,3]
[321497938,1712244638779,-180.0,0.00040068,2]
[321497939,1712244638789,-1915.53428582,0.00040124,14]
[321497940,1712244638798,-2813.66050297,0.00040231,2]
[321497941,1712244638808,-1007.54,0.000406,2]
[321497942,1712244638818,-303.22,0.000406,2]
[321497943,1712244638827,-4540.22434388,0.00040618,2]
[321497944,1712244638838,-150.65,0.00040767,2]
[321497945,1712244638847,-1919.79,0.00040767,15]
[321497947,1712244638857,-350.0,0.00041,3]
[321497949,1712244638866,-151.02,0.00041,2]
[321497950,1712244638877,-151.02,0.00041,2]
[321497951,1712244638886,-151.02,0.00041,2]
[321497952,1712244638895,-157.0,0.00041096,2]
[321497953,1712244638905,-1915.53428581,0.00041104,15]
[321497954,1712244638914,-2813.66050297,0.00041456,2]
[321497955,1712244638923,-186.16909708,0.00041526,15]
[321497956,1712244638933,-303.22,0.00041825,2]
[321497957,1712244638943,-1047.47,0.00041844,2]
[321497958,1712244638952,-4540.22434388,0.00041963,2]
[321497959,1712244638963,-1007.54,0.0004203,2]
[321497960,1712244638973,-1915.53428581,0.00042083,16]
[321497961,1712244638982,-151.67,0.0004223,2]
[321497962,1712244638991,-560.13502918,0.000425,4]
[321497963,1712244639001,-151.02,0.0004259,2]
[321497964,1712244639012,-54225.0,0.000426,7]
[321497965,1712244639022,-2813.66050297,0.00042682,2]
[321497966,1712244639032,-400.0,0.00043,3]
[321497967,1712244639043,-606.049563,0.0004305,2]
[321497968,1712244639053,-1915.53428581,0.00043063,17]
[321497969,1712244639064,-4540.22434388,0.00043309,2]
[321497970,1712244639078,-1007.54,0.0004346,2]
[321497971,1712244639088,-1919.79,0.00043507,15]
[321497972,1712244639098,-152.94,0.000438,4]
[321497973,1712244639108,-152.94,0.000438,4]
[321497974,1712244639118,-152.94,0.000438,4]
[321497975,1712244639129,-152.94,0.000438,4]
[321497976,1712244639138,-152.94,0.000438,4]
[321497977,1712244639149,-152.94,0.000438,4]
[321497978,1712244639158,-152.94,0.000438,4]
[321497979,1712244639167,-152.94,0.000438,4]
[321497980,1712244639177,-152.94,0.000438,4]
[321497981,1712244639186,-4164.36,0.000438,4]
[321497982,1712244639196,-4164.36,0.000438,4]
[321497983,1712244639206,-4164.36,0.000438,4]
[321497984,1712244639216,-4164.36,0.000438,4]
[321497985,1712244639226,-4164.36,0.000438,4]
[321497986,1712244639236,-4164.36,0.000438,4]
[321497987,1712244639246,-4164.36,0.000438,4]
[321497988,1712244639255,-4164.36,0.000438,4]
[321497989,1712244639267,-4164.36,0.000438,4]
[321497990,1712244639277,-352.88,0.00043836,2]
[321497991,1712244639286,-2813.66050297,0.00043908,2]
[321497992,1712244639296,-150.000001,0.00044,44]
[321497993,1712244639306,-1915.53428581,0.00044043,19]
[321497994,1712244639315,-1047.47,0.00044108,2]
[321497995,1712244639325,-151.0,0.00044393,2]
[321497996,1712244639336,-156.25,0.00044444,2]
[321497997,1712244639348,-4540.22434388,0.00044654,2]
[321497998,1712244639360,-1007.54,0.0004489,2]
[321497999,1712244639373,-2001.0,0.000449,2]
[321498000,1712244639384,-192.11652935,0.000449,2]
[321498001,1712244639395,-4866.75400877,0.00044986,4]
[321498002,1712244639406,-255.05833915,0.00045,20]
[321498003,1712244639416,-328.47719203,0.00045,4]
[321498004,1712244639426,-1067.2600768,0.00045,46]
[321498005,1712244639437,-1915.53428581,0.00045022,20]
[321498006,1712244639450,-2813.66050297,0.00045133,2]
[321498007,1712244639462,-417.08,0.0004516,2]
[321498008,1712244639471,-1000.0,0.00045205,7]
[321498009,1712244639482,-1000.0,0.00045205,7]
[321498010,1712244639494,-1000.0,0.00045205,7]
[321498011,1712244639505,-1000.0,0.00045205,7]
[321498012,1712244639517,-1000.0,0.00045205,7]
[321498013,1712244639527,-1000.0,0.00045205,7]
[321498014,1712244639538,-1000.0,0.00045205,7]
[321498015,1712244639548,-1000.0,0.00045205,7]
[321498016,1712244639559,-1000.0,0.00045205,7]
[321498017,1712244639568,-1000.0,0.00045205,7]
[321498018,1712244639577,-1000.0,0.00045205,7]
[321498019,1712244639586,-1000.0,0.00045205,7]
[321498020,1712244639596,-1000.0,0.00045205,7]
[321498021,1712244639606,-1000.0,0.00045205,7]
[321498022,1712244639618,-1000.0,0.00045205,7]
[321498023,1712244639628,-1000.0,0.00045205,7]
[321498024,1712244639638,-1000.0,0.00045205,7]
[321498025,1712244639647,-1000.0,0.00045205,7]
[321498026,1712244639659,-1000.0,0.00045205,7]
[321498027,1712244639669,-1000.0,0.00045205,7]
[321498028,1712244639679,-1000.0,0.00045205,7]
[321498029,1712244639690,-1000.0,0.00045205,7]
[321498030,1712244639701,-1000.0,0.00045205,7]
[321498031,1712244639711,-1000.0,0.00045205,7]
[321498032,1712244639720,-1000.0,0.00045205,7]
[321498033,1712244639730,-1000.0,0.00045205,7]
[321498034,1712244639739,-1000.0,0.00045205,7]
[321498035,1712244639749,-1000.0,0.00045205,7]
[321498036,1712244639761,-1000.0,0.00045205,7]
[321498037,1712244639771,-1000.0,0.00045205,7]
[321498038,1712244639781,-1000.0,0.00045205,7]
[321498039,1712244639791,-1000.0,0.00045205,7]
[321498040,1712244639800,-1000.0,0.00045205,7]
[321498041,1712244639810,-1000.0,0.00045205,7]
[321498042,1712244639820,-1000.0,0.00045205,7]
[321498043,1712244639829,-1000.0,0.00045205,7]
[321498044,1712244639838,-1000.0,0.00045205,7]
[321498045,1712244639848,-1000.0,0.00045205,7]
[321498046,1712244639857,-1000.0,0.00045205,7]
[321498047,1712244639867,-1000.0,0.00045205,7]
[321498048,1712244639877,-1000.0,0.00045205,7]
[321498049,1712244639886,-1000.0,0.00045205,7]
[321498050,1712244639896,-1000.0,0.00045205,7]
[321498051,1712244639906,-1000.0,0.00045205,7]
[321498052,1712244639916,-1000.0,0.00045205,7]
[321498053,1712244639925,-1000.0,0.00045205,7]
[321498054,1712244639934,-1000.0,0.00045205,7]
[321498055,1712244639943,-1000.0,0.00045205,7]
[321498056,1712244639953,-1000.0,0.00045205,7]
[321498057,1712244639962,-1000.0,0.00045205,7]
[321498058,1712244639972,-1000.0,0.00045205,7]
[321498059,1712244639981,-1000.0,0.00045205,7]
[321498060,1712244639990,-1000.0,0.00045205,7]
[321498061,1712244639999,-1000.0,0.00045205,7]
[321498062,1712244640009,-1000.0,0.00045205,7]
[321498063,1712244640018,-1000.0,0.00045205,7]
[321498064,1712244640027,-1000.0,0.00045205,7]
[321498065,1712244640036,-1000.0,0.00045205,7]
[321498066,1712244640046,-1000.0,0.00045205,7]
[321498067,1712244640055,-151.67,0.00045285,2]
[321498068,1712244640067,-150.0,0.000455,8]
[321498069,1712244640076,-1029.0,0.00045561,30]
[321498070,1712244640086,-1000.0,0.00045648,2]
[321498071,1712244640095,-160.06,0.00045701,120]
[321498072,1712244640106,-4540.22434388,0.00046,2]
[321498073,1712244640115,-1200.0,0.00046,47]
[321498074,1712244640125,-150.0,0.00046,8]
[321498075,1712244640134,-1915.53428581,0.00046002,21]
[321498076,1712244640145,-277.70914053,0.00046056,4]
[321498078,1712244640155,-320.020875,0.0004619,30]
[321498079,1712244640164,-400.026094,0.0004619,30]
[321498080,1712244640174,-1919.79,0.00046247,15]
[321498081,1712244640183,-1007.54,0.0004632,2]
[321498082,1712244640193,-2813.66050297,0.00046359,2]
[321498083,1712244640202,-1047.47,0.00046372,2]
[321498084,1712244640212,-175.08311616,0.00046493,60]
[321498085,1712244640221,-273.50867602,0.00046493,60]
[321498087,1712244640230,-180.15795551,0.00046493,60]
[321498088,1712244640239,-217.01808747,0.00046493,60]
[321498092,1712244640248,-150.0,0.000465,8]
[321498095,1712244640258,-2527.03,0.00046575,120]
[321498098,1712244640267,-1000.0,0.00046575,30]
[321498100,1712244640277,-2527.03,0.0004663,120]
[321498102,1712244640286,-2527.03,0.00046684,120]
[321498104,1712244640296,-273.50867602,0.00046685,60]
[321498106,1712244640305,-180.15795551,0.00046685,60]
[321498108,1712244640315,-217.01808747,0.00046685,60]
[321498109,1712244640325,-2527.03,0.00046739,120]
[321498110,1712244640335,-151.02,0.00046757,2]
[321498111,1712244640345,-320.020875,0.00046767,30]
[321498112,1712244640354,-400.026094,0.00046767,30]
[321498113,1712244640364,-2527.03,0.00046794,120]
[321498114,1712244640374,-2527.03,0.00046849,120]
[321498115,1712244640385,-2527.03,0.00046904,120]
[321498116,1712244640395,-273.50867602,0.00046904,60]
[321498117,1712244640406,-180.15795551,0.00046904,60]
[321498118,1712244640415,-217.01808747,0.00046904,60]
[321498119,1712244640425,-196.5143317,0.00046916,22]
[321498120,1712244640435,-150.0,0.00046955,7]
[321498121,1712244640445,-2527.03,0.00046958,120]
[321498122,1712244640456,-1915.53428581,0.00046981,22]
[321498123,1712244640466,-1200.0,0.00047,48]
[321498124,1712244640476,-152.94,0.00047,5]
[321498125,1712244640487,-152.94,0.00047,5]
[321498126,1712244640496,-152.94,0.00047,5]
[321498127,1712244640506,-152.94,0.00047,5]
[321498128,1712244640517,-152.94,0.00047,5]
[321498129,1712244640526,-152.94,0.00047,5]
[321498130,1712244640537,-152.94,0.00047,5]
[321498131,1712244640546,-152.94,0.00047,5]
[321498132,1712244640556,-152.94,0.00047,5]
[321498133,1712244640566,-152.94,0.00047,5]
[321498134,1712244640576,-152.94,0.00047,5]
[321498135,1712244640587,-152.94,0.00047,5]